fUSD/lending_fUSD_20250823
["ID","MTS","AMOUNT","RATE_DAILY","PERIOD"]
[380940014,1755909096102,-372.93815027,0.0001452,2]
[380940015,1755909096111,-411.77,0.0001452,2]
[380940016,1755909096122,-400.0,0.0001452,2]
[380940017,1755909096132,-400.0,0.0001452,2]
[380940018,1755909096141,-400.0,0.0001452,2]
[380940019,1755909096150,-410.23,0.0001452,2]
[380940020,1755909096159,-400.0,0.0001452,2]
[380940021,1755909096268,-400.0,0.0001452,2]
[380940022,1755909096278,-400.0,0.0001452,2]
[380940023,1755909096288,-543.99113006,0.0001452,2]
[380940024,1755909096298,-639.2,0.0001452,2]
[380940025,1755909096307,-477.58,0.0001452,2]
[380940026,1755909096317,-400.0,0.0001452,2]
[380940027,1755909096326,-972.5,0.0001452,2]
[380940028,1755909096336,-414.05,0.0001452,2]
[380940029,1755909096346,-467.39,0.0001452,2]
[380940030,1755909096356,-400.0,0.0001452,2]
[380940031,1755909096366,-400.0,0.0001452,2]
[380940032,1755909096375,-400.0,0.0001452,2]
[380940033,1755909096384,-667.14,0.0001452,2]
[380940034,1755909096393,-400.0,0.0001452,2]
[380940035,1755909096403,-532.87,0.0001452,2]
[380940036,1755909096413,-400.0,0.0001452,2]
[380940037,1755909096422,-442.87,0.0001452,2]
[380940038,1755909096431,-788.52,0.0001452,2]
[380940039,1755909096441,-400.0,0.0001452,2]
[380940040,1755909096451,-413.86,0.0001452,2]
[380940041,1755909096460,-528.62,0.0001452,2]
[380940042,1755909096469,-400.0,0.0001452,2]
[380940043,1755909096478,-858.81,0.0001452,2]
[380940044,1755909096487,-400.0,0.0001452,2]
[380940045,1755909096497,-400.0,0.0001452,2]
[380940046,1755909096507,-962.13,0.0001452,2]
[380940047,1755909096516,-640.39,0.0001452,2]
[380940048,1755909096526,-400.0,0.0001452,2]
[380940049,1755909096535,-400.0,0.0001452,2]
[380940050,1755909096544,-400.0,0.0001452,2]
[380940051,1755909096554,-400.0,0.0001452,2]
[380940052,1755909096563,-400.0,0.0001452,2]
[380940053,1755909096573,-495.39,0.0001452,2]
[380940054,1755909096583,-431.15,0.0001452,2]
[380940055,1755909096592,-412.84,0.0001452,2]
[380940056,1755909096602,-469.42,0.0001452,2]
[380940057,1755909096611,-400.0,0.0001452,2]
[380940058,1755909096621,-1194.0,0.0001452,2]
[380940059,1755909096631,-400.0,0.0001452,2]
[380940060,1755909096640,-400.0,0.0001452,2]
[380940061,1755909096651,-400.0,0.0001452,2]
[380940062,1755909096660,-400.0,0.0001452,2]
[380940063,1755909096669,-719.77,0.0001452,2]
[380940064,1755909096679,-400.0,0.0001452,2]
[380940065,1755909096688,-1072.22,0.0001452,2]
[380940066,1755909096698,-571.55,0.0001452,2]
[380940067,1755909096707,-400.0,0.0001452,2]
[380940068,1755909096717,-402.59,0.0001452,2]
[380940069,1755909096726,-511.73,0.0001452,2]
[380940070,1755909096736,-400.0,0.0001452,2]
[380940071,1755909096746,-400.0,0.0001452,2]
[380940072,1755909096756,-839.94,0.0001452,2]
[380940073,1755909096766,-796.82,0.0001452,2]
[380940074,1755909096775,-697.65,0.0001452,2]
[380940075,1755909096784,-575.9,0.0001452,2]
[380940076,1755909096793,-486.14,0.0001452,2]
[380940077,1755909096803,-400.0,0.0001452,2]
[380940078,1755909097020,-499.82,0.0001452,2]
[380940079,1755909097029,-400.0,0.0001452,2]
[380940080,1755909097039,-199.71,0.0001452,2]
[380940081,1755909097048,-400.0,0.0001452,2]
[380940082,1755909097058,-400.0,0.0001452,2]
[380940083,1755909097068,-400.0,0.0001452,2]
[380940084,1755909097078,-373.43142723,0.0001452,2]
[380940085,1755909097087,-400.0,0.0001452,2]
[380940086,1755909097096,-814.32,0.0001452,2]
[380940087,1755909097105,-900.25,0.0001452,2]
[380940088,1755909097115,-400.0,0.0001452,2]
[380940089,1755909097124,-657.79,0.0001452,2]
[380940090,1755909097133,-442.56,0.0001452,2]
[380940091,1755909097143,-529.89,0.0001452,2]
[380940092,1755909097152,-400.0,0.0001452,2]
[380940093,1755909097161,-400.0,0.0001452,2]
[380940094,1755909097171,-400.0,0.0001452,2]
[380940095,1755909097179,-400.0,0.0001452,2]
[380940096,1755909097193,-1017.87,0.0001452,2]
[380940097,1755909097202,-400.0,0.0001452,2]
[380940098,1755909097212,-400.0,0.0001452,2]
[380940099,1755909097221,-638.0,0.0001452,2]
[380940100,1755909097231,-400.0,0.0001452,2]
[380940101,1755909097240,-400.0,0.0001452,2]
[380940102,1755909097250,-802.21,0.0001452,2]
[380940103,1755909097260,-410.77,0.0001452,2]
[380940104,1755909097269,-400.0,0.0001452,2]
[380940105,1755909097280,-400.0,0.0001452,2]
[380940106,1755909097289,-400.0,0.0001452,2]
[380940107,1755909097299,-574.55,0.0001452,2]
[380940108,1755909097309,-400.0,0.0001452,2]
[380940109,1755909097318,-400.0,0.0001452,2]
[380940110,1755909097328,-601.94,0.0001452,2]
[380940111,1755909097338,-614.24,0.0001452,2]
[380940112,1755909097347,-548.25,0.0001452,2]
[380940113,1755909097357,-463.43,0.0001452,2]
[380940114,1755909097366,-733.18,0.0001452,2]
[380940115,1755909097376,-400.0,0.0001452,2]
[380940116,1755909097385,-613.84,0.0001452,2]
[380940117,1755909097395,-689.7,0.0001452,2]
[380940118,1755909097404,-466.72,0.0001452,2]
[380940119,1755909097415,-400.0,0.0001452,2]
[380940120,1755909097424,-400.0,0.0001452,2]
[380940121,1755909097434,-461.07,0.0001452,2]
[380940122,1755909097444,-416.42,0.0001452,2]
[380940123,1755909097453,-1025.78,0.0001452,2]
[380940124,1755909097463,-401.75,0.0001452,2]
[380940125,1755909097472,-834.47,0.0001452,2]
[380940126,1755909097482,-472.6,0.0001452,2]
[380940127,1755909097492,-776.97,0.0001452,2]
[380940128,1755909097503,-614.04,0.0001452,2]
[380940129,1755909097512,-400.0,0.0001452,2]
[380940130,1755909097522,-602.14,0.0001452,2]
[380940131,1755909097531,-417.62,0.0001452,2]
[380940132,1755909097541,-400.0,0.0001452,2]
[380940133,1755909097550,-400.0,0.0001452,2]
[380940134,1755909097560,-854.31,0.0001452,2]
[380940135,1755909097569,-400.0,0.0001452,2]
[380940136,1755909097579,-400.0,0.0001452,2]
[380940137,1755909097588,-572.31,0.0001452,2]
[380940138,1755909097597,-419.61,0.0001452,2]
[380940139,1755909097607,-400.0,0.0001452,2]
[380940140,1755909097616,-488.58,0.0001452,2]
[380940141,1755909097626,-585.48,0.0001452,2]
[380940142,1755909097635,-400.0,0.0001452,2]
[380940143,1755909097644,-713.34,0.0001452,2]
[380940144,1755909097653,-400.0,0.0001452,2]
[380940145,1755909097662,-869.4,0.0001452,2]
[380940146,1755909097671,-756.22,0.0001452,2]
[380940147,1755909097680,-494.08,0.0001452,2]
[380940148,1755909097689,-613.84,0.0001452,2]
[380940149,1755909097698,-400.0,0.0001452,2]
[380940150,1755909097707,-400.0,0.0001452,2]
[380940151,1755909097716,-493.02,0.0001452,2]
[380940152,1755909097725,-574.35,0.0001452,2]
[380940153,1755909097734,-400.0,0.0001452,2]
[380940154,1755909097743,-375.43,0.0001452,2]
[380940155,1755909097753,-993.54,0.0001452,2]
[380940156,1755909097762,-518.26,0.0001452,2]
[380940157,1755909097771,-665.46,0.0001452,2]
[380940158,1755909097780,-400.0,0.0001452,2]
[380940159,1755909097789,-587.28,0.0001452,2]
[380940160,1755909097798,-735.95,0.0001452,2]
[380940161,1755909097808,-615.67,0.0001452,2]
[380940162,1755909097818,-400.0,0.0001452,2]
[380940163,1755909097827,-400.0,0.0001452,2]
[380940164,1755909097836,-400.0,0.0001452,2]
[380940165,1755909097845,-448.79,0.0001452,2]
[380940166,1755909097855,-400.0,0.0001452,2]
[380940167,1755909097864,-983.83,0.0001452,2]
[380940168,1755909097874,-442.91,0.0001452,2]
[380940169,1755909097883,-590.43,0.0001452,2]
[380940170,1755909097892,-794.38,0.0001452,2]
[380940171,1755909097903,-400.0,0.0001452,2]
[380940172,1755909097912,-444.08,0.0001452,2]
[380940173,1755909097923,-546.25,0.0001452,2]
[380940174,1755909097933,-703.24,0.0001452,2]
[380940175,1755909097943,-529.58,0.0001452,2]
[380940176,1755909097953,-849.18,0.0001452,2]
[380940177,1755909097962,-876.02,0.0001452,2]
[380940178,1755909097971,-400.0,0.0001452,2]
[380940179,1755909097980,-492.86,0.0001452,2]
[380940180,1755909097991,-400.0,0.0001452,2]
[380940181,1755909098000,-476.2,0.0001452,2]
[380940182,1755909098009,-788.72,0.0001452,2]
[380940183,1755909098019,-756.77,0.0001452,2]
[380940184,1755909098029,-754.08,0.0001452,2]
[380940185,1755909098038,-815.73,0.0001452,2]
[380940186,1755909098047,-400.0,0.0001452,2]
[380940187,1755909098057,-400.0,0.0001452,2]
[380940188,1755909098066,-400.0,0.0001452,2]
[380940189,1755909098076,-400.0,0.0001452,2]
[380940190,1755909098085,-896.11,0.0001452,2]
[380940191,1755909098094,-1011.99,0.0001452,2]
[380940192,1755909098104,-509.28,0.0001452,2]
[380940193,1755909098114,-640.92,0.0001452,2]
[380940194,1755909098123,-859.21,0.0001452,2]
[380940195,1755909098133,-1075.32,0.0001452,2]
[380940196,1755909098142,-400.0,0.0001452,2]
[380940197,1755909098151,-901.15,0.0001452,2]
[380940198,1755909098161,-411.47,0.0001452,2]
[380940199,1755909098170,-400.0,0.0001452,2]
[380940200,1755909098180,-725.33,0.0001452,2]
[380940201,1755909098193,-577.79,0.0001452,2]
[380940202,1755909098203,-425.58,0.0001452,2]
[380940203,1755909098213,-421.13,0.0001452,2]
[380940204,1755909098222,-781.05,0.0001452,2]
[380940205,1755909098234,-606.08,0.0001452,2]
[380940206,1755909098244,-353.84,0.0001452,2]
[380940207,1755909098255,-771.47,0.0001452,2]
[380940208,1755909098265,-475.64,0.0001452,2]
[380940209,1755909098275,-632.28,0.0001452,2]
[380940210,1755909098284,-400.0,0.0001452,2]
[380940211,1755909098294,-552.73,0.0001452,2]
[380940212,1755909098304,-702.38,0.0001452,2]
[380940213,1755909098314,-866.41,0.0001452,2]
[380940214,1755909098323,-400.0,0.0001452,2]
[380940215,1755909098333,-758.47,0.0001452,2]
[380940216,1755909098343,-400.0,0.0001452,2]
[380940217,1755909098353,-677.52,0.0001452,2]
[380940218,1755909098363,-400.0,0.0001452,2]
[380940219,1755909098372,-483.75,0.0001452,2]
[380940220,1755909098382,-400.0,0.0001452,2]
[380940221,1755909098391,-620.99,0.0001452,2]
[380940222,1755909098402,-758.84,0.0001452,2]
[380940223,1755909098411,-424.0,0.0001452,2]
[380940224,1755909098421,-400.0,0.0001452,2]
[380940225,1755909098431,-779.18,0.0001452,2]
[380940226,1755909098440,-507.28,0.0001452,2]
[380940227,1755909098449,-400.0,0.0001452,2]
[380940228,1755909098459,-987.41,0.0001452,2]
[380940229,1755909098469,-400.0,0.0001452,2]
[380940230,1755909098478,-400.0,0.0001452,2]
[380940231,1755909098488,-706.05,0.0001452,2]
[380940232,1755909098497,-3029.47,0.0001452,2]
[380940233,1755909098507,-841.05,0.0001452,2]
[380940234,1755909098516,-869.31,0.0001452,2]
[380940235,1755909098525,-640.38,0.0001452,2]
[380940236,1755909098535,-400.0,0.0001452,2]
[380940237,1755909098544,-498.91,0.0001452,2]
[380940238,1755909098553,-615.48,0.0001452,2]
[380940239,1755909098563,-400.0,0.0001452,2]
[380940240,1755909098572,-503.02,0.0001452,2]
[380940241,1755909098581,-400.0,0.0001452,2]
[380940242,1755909098591,-445.28,0.0001452,2]
[380940243,1755909098600,-426.86,0.0001452,2]
[380940244,1755909098610,-577.61,0.0001452,2]
[380940245,1755909098620,-450.11,0.0001452,2]
[380940246,1755909098629,-990.96,0.0001452,2]
[380940247,1755909098638,-400.0,0.0001452,2]
[380940248,1755909098648,-931.14,0.0001452,2]
[380940249,1755909098657,-400.0,0.0001452,2]
[380940250,1755909098667,-400.0,0.0001452,2]
[380940251,1755909098676,-554.12,0.0001452,2]
[380940252,1755909098686,-576.72,0.0001452,2]
[380940253,1755909098695,-400.0,0.0001452,2]
[380940254,1755909098705,-646.79,0.0001452,2]
[380940255,1755909098714,-737.38,0.0001452,2]
[380940256,1755909098724,-400.0,0.0001452,2]
[380940257,1755909098733,-400.0,0.0001452,2]
[380940258,1755909098743,-400.0,0.0001452,2]
[380940259,1755909098753,-400.0,0.0001452,2]
[380940260,1755909098763,-862.27,0.0001452,2]
[380940261,1755909098772,-658.4,0.0001452,2]
[380940262,1755909098781,-400.0,0.0001452,2]
[380940263,1755909098791,-176.06068473,0.0001452,2]
[380940264,1755909098800,-400.0,0.0001452,2]
[380940265,1755909098810,-400.0,0.0001452,2]
[380940266,1755909098819,-445.91,0.0001452,2]
[380940267,1755909098829,-595.17,0.0001452,2]
[380940268,1755909098838,-492.65,0.0001452,2]
[380940269,1755909098848,-720.25,0.0001452,2]
[380940270,1755909098857,-884.95,0.0001452,2]
[380940271,1755909098867,-600.7,0.0001452,2]
[380940272,1755909098877,-764.74,0.0001452,2]
[380940273,1755909098886,-400.0,0.0001452,2]
[380940274,1755909098896,-891.98,0.0001452,2]
[380940275,1755909098906,-400.0,0.0001452,2]
[380940276,1755909098916,-622.74,0.0001452,2]
[380940277,1755909098926,-400.0,0.0001452,2]
[380940278,1755909098936,-874.86,0.0001452,2]
[380940279,1755909098946,-451.38,0.0001452,2]
[380940280,1755909098956,-560.28,0.0001452,2]
[380940281,1755909098968,-400.0,0.0001452,2]
[380940282,1755909098979,-400.0,0.0001452,2]
[380940283,1755909098990,-708.79,0.0001452,2]
[380940284,1755909099001,-400.0,0.0001452,2]
[380940285,1755909099011,-667.54,0.0001452,2]
[380940286,1755909099020,-528.48,0.0001452,2]
[380940287,1755909099030,-400.0,0.0001452,2]
[380940288,1755909099039,-400.0,0.0001452,2]
[380940289,1755909099049,-400.0,0.0001452,2]
[380940290,1755909099058,-519.95,0.0001452,2]
[380940291,1755909099068,-400.0,0.0001452,2]
[380940292,1755909099077,-870.46,0.0001452,2]
[380940293,1755909099087,-808.28,0.0001452,2]
[380940294,1755909099096,-593.4,0.0001452,2]
[380940295,1755909099106,-707.1,0.0001452,2]
[380940296,1755909099115,-605.98,0.0001452,2]
[380940297,1755909099125,-554.4,0.0001452,2]
[380940298,1755909099136,-731.67,0.0001452,2]
[380940299,1755909099146,-400.0,0.0001452,2]
[380940300,1755909099157,-689.12,0.0001452,2]
[380940301,1755909099167,-400.0,0.0001452,2]
[380940302,1755909099176,-400.0,0.0001452,2]
[380940303,1755909099186,-400.0,0.0001452,2]
[380940304,1755909099198,-1723.92,0.0001452,2]
[380940305,1755909099207,-601.13,0.0001452,2]
[380940306,1755909099217,-976.99,0.0001452,2]
[380940307,1755909099226,-791.71,0.0001452,2]
[380940308,1755909099237,-400.0,0.0001452,2]
[380940309,1755909099247,-433.13,0.0001452,2]
[380940310,1755909099256,-571.32,0.0001452,2]
[380940311,1755909099267,-857.87,0.0001452,2]
[380940312,1755909099278,-524.16,0.0001452,2]
[380940313,1755909099288,-400.0,0.0001452,2]
[380940314,1755909099298,-400.0,0.0001452,2]
[380940315,1755909099307,-763.62,0.0001452,2]
[380940316,1755909099317,-400.0,0.0001452,2]
[380940317,1755909099326,-956.1,0.0001452,2]
[380940318,1755909099336,-557.4,0.0001452,2]
[380940319,1755909099347,-407.93193656,0.0001452,2]
[380940320,1755909099356,-526.88,0.0001452,2]
[380940321,1755909099367,-778.36,0.0001452,2]
[380940322,1755909099376,-424.56,0.0001452,2]
[380940323,1755909099386,-1050.46,0.0001452,2]
[380940324,1755909099396,-733.75,0.0001452,2]
[380940325,1755909099406,-970.43,0.0001452,2]
[380940326,1755909099415,-519.43,0.0001452,2]
[380940327,1755909099425,-1054.58,0.0001452,2]
[380940328,1755909099434,-400.0,0.0001452,2]
[380940329,1755909099444,-400.0,0.0001452,2]
[380940330,1755909099454,-546.29,0.0001452,2]
[380940331,1755909099464,-406.07,0.0001452,2]
[380940332,1755909099473,-400.0,0.0001452,2]
[380940333,1755909099483,-640.8,0.0001452,2]
[380940334,1755909099493,-400.0,0.0001452,2]
[380940335,1755909099503,-610.91,0.0001452,2]
[380940336,1755909099514,-400.0,0.0001452,2]
[380940337,1755909099523,-582.36,0.0001452,2]
[380940338,1755909099534,-832.07,0.0001452,2]
[380940339,1755909099543,-401.5,0.0001452,2]
[380940340,1755909099553,-1000.0,0.0001452,2]
[380940341,1755909099563,-400.0,0.0001452,2]
[380940342,1755909099573,-445.27,0.0001452,2]
[380940343,1755909099583,-400.0,0.0001452,2]
[380940344,1755909099592,-997.13,0.0001452,2]
[380940345,1755909099602,-644.56,0.0001452,2]
[380940346,1755909099612,-453.25,0.0001452,2]
[380940347,1755909099622,-707.89,0.0001452,2]
[380940348,1755909099631,-715.18,0.0001452,2]
[380940349,1755909099642,-685.45,0.0001452,2]
[380940350,1755909099651,-400.0,0.0001452,2]
[380940351,1755909099661,-949.39,0.0001452,2]
[380940352,1755909099670,-840.83,0.0001452,2]
[380940353,1755909099680,-400.0,0.0001452,2]
[380940354,1755909099690,-1448.86,0.0001452,2]
[380940355,1755909099700,-400.0,0.0001452,2]
[380940356,1755909099710,-982.96,0.0001452,2]
[380940357,1755909099720,-593.92,0.0001452,2]
[380940358,1755909099730,-400.0,0.0001452,2]
[380940359,1755909099740,-648.93,0.0001452,2]
[380940360,1755909099750,-400.0,0.0001452,2]
[380940361,1755909099760,-2980.04,0.0001452,2]
[380940362,1755909099770,-739.87,0.0001452,2]
[380940363,1755909099780,-546.71,0.0001452,2]
[380940364,1755909099790,-1454.26,0.0001452,2]
[380940365,1755909099800,-800.57,0.0001452,2]
[380940366,1755909099810,-400.0,0.0001452,2]
[380940367,1755909099820,-692.75,0.0001452,2]
[380940368,1755909099830,-990.2,0.0001452,2]
[380940369,1755909099840,-400.0,0.0001452,2]
[380940370,1755909099850,-699.15,0.0001452,2]
[380940371,1755909099860,-606.93,0.0001452,2]
[380940372,1755909099870,-400.0,0.0001452,2]
[380940373,1755909099879,-555.82,0.0001452,2]
[380940374,1755909099889,-400.0,0.0001452,2]
[380940375,1755909099899,-659.71,0.0001452,2]
[380940376,1755909099909,-400.0,0.0001452,2]
[380940377,1755909099918,-400.0,0.0001452,2]
[380940378,1755909099928,-400.0,0.0001452,2]
[380940379,1755909099938,-693.63,0.0001452,2]
[380940380,1755909099948,-400.0,0.0001452,2]
[380940381,1755909099957,-3054.01,0.0001452,2]
[380940382,1755909099968,-553.64,0.0001452,2]
[380940383,1755909099977,-400.0,0.0001452,2]
[380940384,1755909099987,-400.0,0.0001452,2]
[380940385,1755909099997,-7354.27,0.0001452,2]
[380940386,1755909100006,-400.0,0.0001452,2]
[380940387,1755909100017,-667.54,0.0001452,2]
[380940388,1755909100027,-437.68,0.0001452,2]
[380940389,1755909100037,-400.0,0.0001452,2]
[380940390,1755909100046,-514.02,0.0001452,2]
[380940391,1755909100056,-400.0,0.0001452,2]
[380940392,1755909100066,-564.76,0.0001452,2]
[380940393,1755909100077,-400.0,0.0001452,2]
[380940394,1755909100086,-400.0,0.0001452,2]
[380940395,1755909100097,-400.0,0.0001452,2]
[380940396,1755909100107,-622.59,0.0001452,2]
[380940397,1755909100119,-2143.12,0.0001452,2]
[380940398,1755909100130,-428.31,0.0001452,2]
[380940399,1755909100140,-400.0,0.0001452,2]
[380940400,1755909100150,-400.0,0.0001452,2]
[380940401,1755909100160,-400.0,0.0001452,2]
[380940402,1755909100171,-400.0,0.0001452,2]
[380940403,1755909100189,-746.39,0.0001452,2]
[380940404,1755909100210,-400.0,0.0001452,2]
[380940405,1755909100230,-873.6,0.0001452,2]
[380940406,1755909100242,-506.14,0.0001452,2]
[380940407,1755909100252,-701.17,0.0001452,2]
[380940408,1755909100263,-464.14,0.0001452,2]
[380940409,1755909100272,-400.0,0.0001452,2]
[380940410,1755909100282,-667.86,0.0001452,2]
[380940411,1755909100292,-400.0,0.0001452,2]
[380940412,1755909100310,-430.84,0.0001452,2]
[380940413,1755909100545,-723.11,0.0001452,2]
[380940414,1755909100555,-400.0,0.0001452,2]
[380940415,1755909100564,-400.0,0.0001452,2]
[380940416,1755909100574,-400.0,0.0001452,2]
[380940417,1755909100583,-467.67,0.0001452,2]
[380940418,1755909100592,-382.78348493,0.0001452,2]
[380940419,1755909100602,-403.81,0.0001452,2]
[380940420,1755909100611,-462.24,0.0001452,2]
[380940421,1755909100620,-474.37521567,0.0001452,2]
[380940422,1755909100629,-400.0,0.0001452,2]
[380940423,1755909100639,-400.0,0.0001452,2]
[380940424,1755909100648,-465.9,0.0001452,2]
[380940425,1755909100657,-400.0,0.0001452,2]
[380940426,1755909100666,-426.68,0.0001452,2]
[380940427,1755909100676,-422.36,0.0001452,2]
[380940428,1755909100685,-550.31,0.0001452,2]
[380940429,1755909100694,-610.92,0.0001452,2]
[380940430,1755909100704,-400.0,0.0001452,2]
[380940431,1755909100713,-585.08,0.0001452,2]
[380940432,1755909100723,-400.0,0.0001452,2]
[380940433,1755909100732,-584.01,0.0001452,2]
[380940434,1755909100741,-578.59,0.0001452,2]
[380940435,1755909100751,-849.52,0.0001452,2]
[380940436,1755909100761,-566.15,0.0001452,2]
[380940437,1755909100770,-362.27830214,0.0001452,2]
[380940438,1755909100779,-506.71,0.0001452,2]
[380940439,1755909100789,-400.0,0.0001452,2]
[380940440,1755909100798,-400.0,0.0001452,2]
[380940441,1755909100807,-400.0,0.0001452,2]
[380940442,1755909100816,-879.86,0.0001452,2]
[380940443,1755909100825,-400.0,0.0001452,2]
[380940444,1755909100834,-400.0,0.0001452,2]
[380940445,1755909100844,-3024.23,0.0001452,2]
[380940446,1755909100853,-400.0,0.0001452,2]
[380940447,1755909100863,-657.96,0.0001452,2]
[380940448,1755909100872,-782.19,0.0001452,2]
[380940449,1755909100882,-523.88,0.0001452,2]
[380940450,1755909100892,-607.68,0.0001452,2]
[380940451,1755909100901,-578.04,0.0001452,2]
[380940452,1755909100910,-484.15,0.0001452,2]
[380940453,1755909100920,-1191.42,0.0001452,2]
[380940454,1755909100929,-700.38,0.0001452,2]
[380940455,1755909100939,-400.0,0.0001452,2]
[380940456,1755909100949,-776.73,0.0001452,2]
[380940457,1755909100958,-840.01,0.0001452,2]
[380940458,1755909100968,-483.84,0.0001452,2]
[380940459,1755909100977,-400.0,0.0001452,2]
[380940460,1755909100986,-631.44,0.0001452,2]
[380940461,1755909100996,-400.0,0.0001452,2]
[380940462,1755909101006,-758.06,0.0001452,2]
[380940463,1755909101016,-400.0,0.0001452,2]
[380940464,1755909101026,-400.0,0.0001452,2]
[380940465,1755909101035,-587.88,0.0001452,2]
[380940466,1755909101044,-400.0,0.0001452,2]
[380940467,1755909101053,-665.99,0.0001452,2]
[380940468,1755909101063,-522.42,0.0001452,2]
[380940469,1755909101072,-400.0,0.0001452,2]
[380940470,1755909101081,-400.0,0.0001452,2]
[380940471,1755909101091,-883.81,0.0001452,2]
[380940472,1755909101100,-400.0,0.0001452,2]
[380940473,1755909101109,-893.73,0.0001452,2]
[380940474,1755909101119,-400.0,0.0001452,2]
[380940475,1755909101129,-678.75,0.0001452,2]
[380940476,1755909101138,-400.0,0.0001452,2]
[380940477,1755909101147,-400.0,0.0001452,2]
[380940478,1755909101157,-666.33,0.0001452,2]
[380940479,1755909101166,-400.0,0.0001452,2]
[380940480,1755909101176,-507.88,0.0001452,2]
[380940481,1755909101185,-400.0,0.0001452,2]
[380940482,1755909101199,-400.0,0.0001452,2]
[380940483,1755909101209,-761.73,0.0001452,2]
[380940484,1755909101218,-842.68,0.0001452,2]
[380940485,1755909101228,-649.71,0.0001452,2]
[380940486,1755909101240,-467.86,0.0001452,2]
[380940487,1755909101249,-1111.45,0.0001452,2]
[380940488,1755909101259,-1320.96,0.0001452,2]
[380940489,1755909101269,-697.79,0.0001452,2]
[380940490,1755909101279,-480.38032492,0.0001452,2]
[380940491,1755909101289,-517.79,0.0001452,2]
[380940492,1755909101299,-400.0,0.0001452,2]
[380940493,1755909101309,-689.28,0.0001452,2]
[380940494,1755909101319,-430.22,0.0001452,2]
[380940495,1755909101329,-400.0,0.0001452,2]
[380940496,1755909101339,-538.01,0.0001452,2]
[380940497,1755909101349,-1038.23,0.0001452,2]
[380940498,1755909101358,-400.0,0.0001452,2]
[380940499,1755909101367,-400.0,0.0001452,2]
[380940500,1755909101377,-543.95,0.0001452,2]
[380940501,1755909101387,-758.69,0.0001452,2]
[380940502,1755909101396,-484.43,0.0001452,2]
[380940503,1755909101406,-1312.56,0.0001452,2]
[380940504,1755909101415,-284.73047376,0.0001452,2]
[380940505,1755909101424,-793.34,0.0001452,2]
[380940506,1755909101434,-402.89,0.0001452,2]
[380940507,1755909101443,-400.0,0.0001452,2]
[380940508,1755909101452,-1961.29,0.0001452,2]
[380940509,1755909101462,-960.13,0.0001452,2]
[380940510,1755909101471,-400.0,0.0001452,2]
[380940511,1755909101480,-667.43,0.0001452,2]
[380940512,1755909101489,-681.41,0.0001452,2]
[380940513,1755909101499,-604.74,0.0001452,2]